fUST/lending_fUST_20250720
["ID","MTS","AMOUNT","RATE_DAILY","PERIOD"]
[373498428,1753023044344,-160.0,0.00017833,2]
[373498430,1753023044355,-525.91036056,0.00017833,2]
[373498432,1753023044364,-160.0,0.00017833,2]
[373498434,1753023044373,-4253.2138372,0.000179,2]
[373498436,1753023044382,-420.0,0.00017963,2]
[373498438,1753023044392,-187.0,0.00017963,2]
[373498440,1753023044402,-312.0,0.00017963,2]
[373498442,1753023044411,-160.0,0.00017986,2]
[373498444,1753023044422,-1680.0,0.00018052,2]
[373498446,1753023044431,-1541.56,0.00018072,3]
[373498448,1753023044440,-1176.46,0.00018072,3]
[373498450,1753023044450,-588.22,0.00018072,3]
[373498452,1753023044459,-460.0,0.00018082,2]
[373498454,1753023044468,-460.0,0.00018082,2]
[373498456,1753023044478,-460.0,0.00018082,2]
[373498458,1753023044488,-1596.5,0.00018082,2]
[373498460,1753023044497,-460.0,0.00018082,2]
[373498462,1753023044506,-2392.5,0.00018082,2]
[373498478,1753023044638,-1046.66,0.00018082,2]
[373498480,1753023044648,-460.0,0.00018082,2]
[373498482,1753023044658,-460.0,0.00018082,2]
[373498484,1753023044668,-460.0,0.00018082,2]
[373498486,1753023044677,-641.43,0.00018082,2]
[373498488,1753023044686,-460.0,0.00018082,2]
[373498490,1753023044696,-460.0,0.00018082,2]
[373498492,1753023044705,-471.55391111,0.00018082,2]
[373498494,1753023044715,-465.64,0.00018082,2]
[373498496,1753023044724,-169.76,0.00018082,2]
[373498498,1753023044733,-460.0,0.00018082,2]
[373498500,1753023044743,-493.01,0.00018082,2]
[373498502,1753023044752,-460.0,0.00018082,2]
[373498504,1753023044761,-460.0,0.00018082,2]
[373498506,1753023044770,-460.0,0.00018082,2]
[373498508,1753023044780,-460.0,0.00018082,2]
[373498510,1753023044791,-460.0,0.00018082,2]
[373498512,1753023044800,-460.0,0.00018082,2]
[373498514,1753023044810,-460.0,0.00018082,2]
[373498516,1753023044819,-2017.06,0.00018082,2]
[373498518,1753023044829,-993.92,0.00018082,2]
[373498520,1753023044839,-460.0,0.00018082,2]
[373498522,1753023044848,-460.0,0.00018082,2]
[373498524,1753023044858,-460.0,0.00018082,2]
[373498526,1753023044868,-460.0,0.00018082,2]
[373498528,1753023044878,-471.17,0.00018082,2]
[373498530,1753023044887,-460.0,0.00018082,2]
[373498532,1753023044897,-460.0,0.00018082,2]
[373498534,1753023044907,-460.0,0.00018082,2]
[373498536,1753023044917,-1985.29,0.00018082,2]
[373498538,1753023044926,-460.0,0.00018082,2]
[373498540,1753023044935,-464.4,0.00018082,2]
[373498542,1753023044945,-1227.97,0.00018082,2]
[373498544,1753023044954,-1900.71,0.00018082,2]
[373498546,1753023044964,-460.0,0.00018082,2]
[373498548,1753023044973,-460.0,0.00018082,2]
[373498550,1753023044983,-460.0,0.00018082,2]
[373498552,1753023044992,-532.58,0.00018082,2]
[373498554,1753023045002,-460.0,0.00018082,2]
[373498556,1753023045011,-471.67,0.00018082,2]
[373498558,1753023045021,-460.0,0.00018082,2]
[373498560,1753023045030,-602.73,0.00018082,2]
[373498562,1753023045040,-1681.56,0.00018082,2]
[373498564,1753023045049,-460.0,0.00018082,2]
[373498566,1753023045058,-1600.4,0.00018082,2]
[373498568,1753023045068,-498.85,0.00018082,2]
[373498570,1753023045077,-1384.24,0.00018082,2]
[373498572,1753023045086,-570.05,0.00018082,2]
[373498574,1753023045096,-1489.64,0.00018082,2]
[373498576,1753023045105,-549.58,0.00018082,2]
[373498578,1753023045115,-460.0,0.00018082,2]
[373498580,1753023045124,-460.0,0.00018082,2]
[373498582,1753023045133,-460.0,0.00018082,2]
[373498584,1753023045143,-460.0,0.00018082,2]
[373498586,1753023045152,-538.47,0.00018082,2]
[373498588,1753023045162,-460.0,0.00018082,2]
[373498590,1753023045171,-2511.51,0.00018082,2]
[373498592,1753023045180,-2286.56,0.00018082,2]
[373498594,1753023045189,-469.89,0.00018082,2]
[373498596,1753023045199,-460.0,0.00018082,2]
[373498598,1753023045209,-460.0,0.00018082,2]
[373498600,1753023045218,-409.77003339,0.00018082,2]
[373498602,1753023045227,-460.0,0.00018082,2]
[373498604,1753023045236,-1500.0,0.00018139,2]
[373498606,1753023045245,-4253.21383711,0.00018141,2]
[373498608,1753023045254,-1023.28629004,0.00018169,2]
[373498610,1753023045264,-1500.0,0.00018169,2]
[373498613,1753023045274,-425.69746946,0.00018169,2]
[373498615,1753023045285,-1500.0,0.00018169,2]
[373498617,1753023045294,-1500.0,0.00018189,2]
[373498619,1753023045303,-319.92,0.00018353,2]
[373498621,1753023045313,-460.0,0.00018356,2]
[373498623,1753023045322,-267.22709091,0.00018356,2]
[373498625,1753023045332,-1596.5,0.00018356,2]
[373498627,1753023045342,-460.0,0.00018356,2]
[373498629,1753023045356,-2392.5,0.00018356,2]
[373498630,1753023045365,-1046.66,0.00018356,2]
[373498633,1753023045375,-460.0,0.00018356,2]
[373498634,1753023045386,-460.0,0.00018356,2]
[373498636,1753023045395,-460.0,0.00018356,2]
[373498639,1753023045404,-641.43,0.00018356,2]
[373498641,1753023045414,-460.0,0.00018356,2]
[373498643,1753023045424,-460.0,0.00018356,2]
[373498645,1753023045434,-465.64,0.00018356,2]
[373498646,1753023045443,-460.0,0.00018356,2]
[373498648,1753023045453,-493.01,0.00018356,2]
[373498651,1753023045463,-460.0,0.00018356,2]
[373498653,1753023045472,-460.0,0.00018356,2]
[373498655,1753023045482,-460.0,0.00018356,2]
[373498657,1753023045491,-373.91757598,0.00018356,2]
[373498659,1753023045501,-460.0,0.00018356,2]
[373498661,1753023045510,-460.0,0.00018356,2]
[373498663,1753023045519,-460.0,0.00018356,2]
[373498665,1753023045528,-2017.06,0.00018356,2]
[373498667,1753023045538,-993.92,0.00018356,2]
[373498669,1753023045547,-460.0,0.00018356,2]
[373498671,1753023045556,-460.0,0.00018356,2]
[373498673,1753023045566,-460.0,0.00018356,2]
[373498675,1753023045575,-460.0,0.00018356,2]
[373498677,1753023045585,-471.17,0.00018356,2]
[373498679,1753023045594,-460.0,0.00018356,2]
[373498681,1753023045603,-460.0,0.00018356,2]
[373498683,1753023045612,-460.0,0.00018356,2]
[373498685,1753023045622,-1985.29,0.00018356,2]
[373498687,1753023045630,-460.0,0.00018356,2]
[373498689,1753023045639,-464.4,0.00018356,2]
[373498691,1753023045648,-1227.97,0.00018356,2]
[373498693,1753023045658,-1900.71,0.00018356,2]
[373498695,1753023045668,-460.0,0.00018356,2]
[373498697,1753023045677,-460.0,0.00018356,2]
[373498699,1753023045686,-460.0,0.00018356,2]
[373498701,1753023045696,-532.58,0.00018356,2]
[373498703,1753023045705,-460.0,0.00018356,2]
[373498705,1753023045715,-471.67,0.00018356,2]
[373498707,1753023045723,-460.0,0.00018356,2]
[373498709,1753023045733,-602.73,0.00018356,2]
[373498711,1753023045742,-1681.56,0.00018356,2]
[373498713,1753023045751,-460.0,0.00018356,2]
[373498715,1753023045759,-1600.4,0.00018356,2]
[373498717,1753023045768,-498.85,0.00018356,2]
[373498719,1753023045778,-1384.24,0.00018356,2]
[373498721,1753023045787,-570.05,0.00018356,2]
[373498723,1753023045796,-1489.64,0.00018356,2]
[373498725,1753023045805,-549.58,0.00018356,2]
[373498727,1753023045814,-460.0,0.00018356,2]
[373498729,1753023045823,-460.0,0.00018356,2]
[373498731,1753023045832,-460.0,0.00018356,2]
[373498733,1753023045841,-479.08427041,0.00018356,2]
[373498735,1753023045850,-538.47,0.00018356,2]
[373498737,1753023045859,-460.0,0.00018356,2]
[373498739,1753023045869,-2511.51,0.00018356,2]
[373498741,1753023045878,-2286.56,0.00018356,2]
[373498743,1753023045888,-469.89,0.00018356,2]
[373498745,1753023045897,-460.0,0.00018356,2]
[373498747,1753023045908,-460.0,0.00018356,2]
[373498749,1753023045918,-460.0,0.00018356,2]
[373498751,1753023045927,-4253.21383711,0.00018383,2]
[373498753,1753023045936,-2010.80235084,0.00018529,2]
[373498755,1753023045945,-260.0,0.00018534,2]
[373498757,1753023045955,-317.0,0.00018587,2]
[373498759,1753023045964,-228.0,0.00018601,2]
[373498761,1753023045975,-4253.21383711,0.00018624,2]
[373498763,1753023045984,-460.0,0.0001863,2]
[373498765,1753023045994,-1596.5,0.0001863,2]
[373498767,1753023046003,-460.0,0.0001863,2]
[373498769,1753023046013,-2392.5,0.0001863,2]
[373498771,1753023046023,-1046.66,0.0001863,2]
[373498773,1753023046033,-460.0,0.0001863,2]
[373498775,1753023046042,-460.0,0.0001863,2]
[373498777,1753023046051,-641.43,0.0001863,2]
[373498779,1753023046060,-460.0,0.0001863,2]
[373498781,1753023046070,-465.64,0.0001863,2]
[373498783,1753023046080,-460.0,0.0001863,2]
[373498785,1753023046090,-493.01,0.0001863,2]
[373498787,1753023046100,-460.0,0.0001863,2]
[373498789,1753023046110,-460.0,0.0001863,2]
[373498791,1753023046120,-460.0,0.0001863,2]
[373498793,1753023046130,-460.0,0.0001863,2]
[373498795,1753023046140,-460.0,0.0001863,2]
[373498797,1753023046150,-460.0,0.0001863,2]
[373498799,1753023046160,-2017.06,0.0001863,2]
[373498801,1753023046171,-993.92,0.0001863,2]
[373498803,1753023046180,-460.0,0.0001863,2]
[373498806,1753023046190,-487.17786816,0.0001863,2]
[373498809,1753023046203,-403.37,0.0001863,2]
[373498811,1753023046216,-460.0,0.0001863,2]
[373498813,1753023046229,-471.17,0.0001863,2]
[373498816,1753023046242,-460.0,0.0001863,2]
[373498818,1753023046256,-460.0,0.0001863,2]
[373498820,1753023046269,-460.0,0.0001863,2]
[373498822,1753023046281,-1985.29,0.0001863,2]
[373498825,1753023046293,-460.0,0.0001863,2]
[373498827,1753023046305,-464.4,0.0001863,2]
[373498830,1753023046317,-1227.97,0.0001863,2]
[373498832,1753023046330,-1900.71,0.0001863,2]
[373498835,1753023046345,-460.0,0.0001863,2]
[373498838,1753023046363,-460.0,0.0001863,2]
[373498840,1753023046375,-460.0,0.0001863,2]
[373498842,1753023046389,-532.58,0.0001863,2]
[373498844,1753023046401,-460.0,0.0001863,2]
[373498846,1753023046412,-471.67,0.0001863,2]
[373498848,1753023046426,-460.0,0.0001863,2]
[373498851,1753023046439,-602.73,0.0001863,2]
[373498853,1753023046451,-1681.56,0.0001863,2]
[373498855,1753023046465,-460.0,0.0001863,2]
[373498857,1753023046476,-1600.4,0.0001863,2]
[373498860,1753023046488,-498.85,0.0001863,2]
[373498862,1753023046499,-570.05,0.0001863,2]
[373498864,1753023046512,-1384.24,0.0001863,2]
[373498866,1753023046523,-1489.64,0.0001863,2]
[373498868,1753023046534,-549.58,0.0001863,2]
[373498870,1753023046546,-506.98997114,0.0001863,2]
[373498873,1753023046558,-460.0,0.0001863,2]
[373498875,1753023046571,-460.0,0.0001863,2]
[373498877,1753023046583,-538.47,0.0001863,2]
[373498880,1753023046595,-2511.51,0.0001863,2]
[373498882,1753023046607,-2286.56,0.0001863,2]
[373498884,1753023046617,-469.89,0.0001863,2]
[373498886,1753023046628,-460.0,0.0001863,2]
[373498888,1753023046638,-460.0,0.0001863,2]
[373498890,1753023046649,-460.0,0.0001863,2]
[373498892,1753023046660,-2000.0,0.00018687,2]
[373498894,1753023046670,-228.0,0.00018701,2]
[373498897,1753023046682,-1500.0,0.00018717,2]
[373498899,1753023046693,-1000.0,0.00018717,2]
[373498901,1753023046705,-168.0,0.00018728,2]
[373498903,1753023046716,-2000.0,0.00018737,2]
[373498906,1753023046728,-420.0,0.00018787,2]
[373498908,1753023046739,-228.0,0.00018819,2]
[373498910,1753023046750,-4253.21383711,0.00018866,2]
[373498912,1753023046762,-312.99209807,0.000189,2]
[373498914,1753023046774,-303.07879564,0.000189,2]
[373498917,1753023046786,-303.07879564,0.000189,2]
[373498919,1753023046797,-460.0,0.00018904,2]
[373498921,1753023046810,-1596.5,0.00018904,2]
[373498923,1753023046822,-460.0,0.00018904,2]
[373498925,1753023046832,-2392.5,0.00018904,2]
[373498927,1753023046842,-1046.66,0.00018904,2]
[373498929,1753023046852,-460.0,0.00018904,2]
[373498932,1753023046863,-460.0,0.00018904,2]
[373498935,1753023046873,-641.43,0.00018904,2]
[373498939,1753023046884,-460.0,0.00018904,2]
[373498941,1753023046895,-465.64,0.00018904,2]
[373498943,1753023046906,-460.0,0.00018904,2]
[373498944,1753023046919,-493.01,0.00018904,2]
[373498945,1753023046931,-460.0,0.00018904,2]
[373498946,1753023046942,-460.0,0.00018904,2]
[373498948,1753023046951,-460.0,0.00018904,2]
[373498949,1753023046961,-460.0,0.00018904,2]
[373498950,1753023046972,-460.0,0.00018904,2]
[373498951,1753023046983,-460.0,0.00018904,2]
[373498952,1753023046994,-2017.06,0.00018904,2]
[373498953,1753023047004,-993.92,0.00018904,2]
[373498954,1753023047015,-460.0,0.00018904,2]
[373498956,1753023047027,-460.0,0.00018904,2]
[373498958,1753023047038,-471.17,0.00018904,2]
[373498961,1753023047049,-460.0,0.00018904,2]
[373498963,1753023047059,-460.0,0.00018904,2]
[373498965,1753023047070,-460.0,0.00018904,2]
[373498967,1753023047080,-1985.29,0.00018904,2]
[373498969,1753023047090,-460.0,0.00018904,2]
[373498971,1753023047101,-464.4,0.00018904,2]
[373498973,1753023047111,-1227.97,0.00018904,2]
[373498975,1753023047122,-1900.71,0.00018904,2]
[373498977,1753023047133,-460.0,0.00018904,2]
[373498980,1753023047143,-460.0,0.00018904,2]
[373498982,1753023047154,-460.0,0.00018904,2]
[373498984,1753023047164,-532.58,0.00018904,2]
[373498986,1753023047174,-477.82,0.00018904,2]
[373498988,1753023047185,-471.67,0.00018904,2]
[373498990,1753023047196,-460.0,0.00018904,2]
[373498992,1753023047206,-602.73,0.00018904,2]
[373498994,1753023047217,-1681.56,0.00018904,2]
[373498996,1753023047227,-306.72,0.00018904,2]
[373498999,1753023047239,-1600.4,0.00018904,2]
[373499001,1753023047248,-498.85,0.00018904,2]
[373499003,1753023047260,-570.05,0.00018904,2]
[373499005,1753023047270,-1384.24,0.00018904,2]
[373499007,1753023047281,-1489.64,0.00018904,2]
[373499009,1753023047292,-549.58,0.00018904,2]
[373499011,1753023047303,-236.8,0.00018904,2]
[373499013,1753023047313,-460.0,0.00018904,2]
[373499016,1753023047325,-538.47,0.00018904,2]
[373499018,1753023047335,-2511.51,0.00018904,2]
[373499020,1753023047350,-2286.56,0.00018904,2]
[373499022,1753023047362,-469.89,0.00018904,2]
[373499024,1753023047373,-471.94,0.00018904,2]
[373499026,1753023047384,-460.0,0.00018904,2]
[373499028,1753023047395,-460.0,0.00018904,2]
[373499031,1753023047405,-7356.13753329,0.00018929,2]
[373499033,1753023047416,-168.0,0.00018936,2]
[373499035,1753023047428,-1698.26012099,0.00018939,2]
[373499037,1753023047439,-228.0,0.00018962,2]
[373499039,1753023047450,-360.0,0.00019082,2]
[373499042,1753023047460,-383.91,0.00019087,2]
[373499045,1753023047471,-317.0,0.00019088,2]
[373499047,1753023047482,-303.08485824,0.00019089,2]
[373499049,1753023047493,-304.94382774,0.00019089,2]
[373499051,1753023047503,-4253.21383711,0.00019107,2]
[373499053,1753023047513,-206.4481837,0.00019151,3]
[373499055,1753023047524,-231.28369723,0.00019166,2]
[373499057,1753023047534,-168.0,0.00019171,2]
[373499059,1753023047545,-500.0,0.00019177,2]
[373499061,1753023047556,-500.0,0.00019177,2]
[373499063,1753023047566,-500.0,0.00019177,2]
[373499066,1753023047576,-500.0,0.00019177,2]
[373499068,1753023047586,-293.83206315,0.00019177,2]
[373499070,1753023047596,-500.0,0.00019177,2]
[373499072,1753023047607,-500.0,0.00019177,2]
[373499074,1753023047617,-500.0,0.00019177,2]
[373499076,1753023047627,-500.0,0.00019177,2]
[373499078,1753023047638,-529.01712743,0.00019177,2]
[373499080,1753023047648,-500.0,0.00019177,2]
[373499082,1753023047659,-500.0,0.00019177,2]
[373499085,1753023047669,-500.0,0.00019177,2]
[373499087,1753023047678,-500.0,0.00019177,2]
[373499089,1753023047688,-500.0,0.00019177,2]
[373499091,1753023047699,-500.0,0.00019177,2]
[373499093,1753023047710,-152.232821,0.00019178,2]
[373499095,1753023047720,-535.47188083,0.00019178,2]
[373499097,1753023047730,-1596.5,0.00019178,2]
[373499099,1753023047741,-460.0,0.00019178,2]
[373499101,1753023047751,-2392.5,0.00019178,2]
[373499103,1753023047762,-1046.66,0.00019178,2]
[373499106,1753023047772,-460.0,0.00019178,2]
[373499108,1753023047783,-460.0,0.00019178,2]
[373499110,1753023047797,-641.43,0.00019178,2]
[373499112,1753023047808,-460.0,0.00019178,2]
[373499114,1753023047818,-465.64,0.00019178,2]
[373499116,1753023047829,-460.0,0.00019178,2]
[373499119,1753023047840,-493.01,0.00019178,2]
[373499121,1753023047850,-460.0,0.00019178,2]
[373499123,1753023047860,-460.0,0.00019178,2]
[373499125,1753023047869,-460.0,0.00019178,2]
[373499127,1753023047878,-463.87424337,0.00019178,2]
[373499129,1753023047888,-460.0,0.00019178,2]
[373499131,1753023047897,-460.0,0.00019178,2]
[373499133,1753023047907,-2017.06,0.00019178,2]
[373499135,1753023047916,-993.92,0.00019178,2]
[373499137,1753023047925,-460.0,0.00019178,2]
[373499139,1753023047935,-273.98,0.00019178,2]
[373499141,1753023047945,-471.17,0.00019178,2]
[373499143,1753023047954,-460.0,0.00019178,2]
[373499145,1753023047963,-460.0,0.00019178,2]
[373499147,1753023047972,-460.0,0.00019178,2]
[373499149,1753023047982,-1985.29,0.00019178,2]
[373499151,1753023047991,-460.0,0.00019178,2]
[373499153,1753023048000,-464.4,0.00019178,2]
[373499155,1753023048009,-1227.97,0.00019178,2]
[373499157,1753023048019,-1900.71,0.00019178,2]
[373499177,1753023048165,-460.0,0.00019178,2]
[373499180,1753023048227,-460.0,0.00019178,2]
[373499182,1753023048239,-460.0,0.00019178,2]
[373499184,1753023048249,-532.58,0.00019178,2]
[373499187,1753023048259,-471.67,0.00019178,2]
[373499188,1753023048268,-460.0,0.00019178,2]
[373499190,1753023048277,-602.73,0.00019178,2]
[373499192,1753023048287,-1681.56,0.00019178,2]
[373499194,1753023048296,-1600.4,0.00019178,2]
[373499196,1753023048305,-498.85,0.00019178,2]
[373499198,1753023048315,-570.05,0.00019178,2]
[373499200,1753023048325,-1384.24,0.00019178,2]
[373499202,1753023048335,-1489.64,0.00019178,2]
[373499204,1753023048345,-549.58,0.00019178,2]
[373499206,1753023048358,-460.0,0.00019178,2]
[373499208,1753023048368,-538.47,0.00019178,2]
[373499211,1753023048377,-2511.51,0.00019178,2]
[373499213,1753023048387,-2286.56,0.00019178,2]
[373499215,1753023048398,-469.89,0.00019178,2]
[373499217,1753023048409,-460.0,0.00019178,2]
[373499219,1753023048418,-460.0,0.00019178,2]
[373499221,1753023048430,-666.0,0.00019178,2]
[373499223,1753023048441,-5000.0,0.00019178,2]
[373499225,1753023048451,-158.19550401,0.00019183,2]
[373499227,1753023048460,-500.0,0.00019231,2]
[373499229,1753023048470,-501.91390619,0.00019231,2]
[373499231,1753023048479,-500.0,0.00019231,2]
[373499233,1753023048488,-500.0,0.00019235,2]
[373499234,1753023048497,-500.0,0.00019236,2]
[373499236,1753023048507,-158.1957331,0.00019236,2]
[373499238,1753023048517,-160.00964404,0.00019236,2]
[373499240,1753023048528,-500.0,0.00019236,2]
[373499243,1753023048539,-500.0,0.00019236,2]
[373499244,1753023048549,-500.0,0.00019236,2]
[373499246,1753023048558,-347.71283598,0.00019236,2]
[373499248,1753023048568,-500.0,0.00019236,2]
[373499251,1753023048578,-274.06147548,0.0001924,2]
[373499252,1753023048587,-158.20426064,0.0001924,2]
[373499254,1753023048596,-500.0,0.0001924,2]
[373499256,1753023048606,-500.0,0.00019256,2]
[373499258,1753023048615,-500.0,0.00019256,2]
[373499260,1753023048625,-500.0,0.00019256,2]
[373499262,1753023048635,-500.0,0.00019256,2]
[373499264,1753023048644,-500.0,0.00019256,2]
[373499266,1753023048654,-615.69128315,0.00019256,2]
[373499268,1753023048663,-500.0,0.00019256,2]
[373499270,1753023048673,-501.1262968,0.00019256,2]
[373499272,1753023048682,-500.0,0.00019256,2]
[373499274,1753023048691,-500.0,0.00019256,2]
[373499276,1753023048701,-158.19723148,0.00019256,2]
[373499278,1753023048709,-158.48796273,0.00019256,2]
[373499280,1753023048718,-500.0,0.00019256,2]
[373499282,1753023048728,-500.0,0.00019256,2]
[373499284,1753023048737,-500.3480752,0.00019256,2]
[373499286,1753023048746,-152.18081814,0.00019256,2]
[373499288,1753023048755,-500.0,0.00019256,2]
[373499290,1753023048764,-500.0,0.00019256,2]
[373499291,1753023048774,-500.96833344,0.00019256,2]
[373499292,1753023048783,-158.19984704,0.00019256,2]
[373499293,1753023048793,-168.0,0.00019284,2]
[373499294,1753023048802,-1507.5277841,0.00019285,2]
[373499295,1753023048812,-500.47556397,0.00019294,2]
[373499296,1753023048822,-384.13370304,0.00019294,2]
[373499297,1753023048831,-500.70846675,0.00019294,2]
[373499298,1753023048840,-500.86803808,0.00019294,2]
[373499299,1753023048849,-500.0,0.00019294,2]
[373499300,1753023048859,-500.0,0.00019294,2]
[373499301,1753023048869,-500.0,0.00019294,2]
[373499302,1753023048878,-500.0,0.00019294,2]
[373499303,1753023048888,-500.0,0.00019294,2]
[373499304,1753023048897,-500.0,0.00019294,2]
[373499305,1753023048907,-502.33390025,0.00019294,2]
[373499306,1753023048916,-500.0,0.00019294,2]
[373499307,1753023048925,-500.0,0.00019294,2]
[373499308,1753023048934,-168.0,0.00019307,2]
[373499309,1753023048944,-30257.81230337,0.00019329,2]
[373499310,1753023048954,-4253.21383711,0.00019348,2]
[373499311,1753023048963,-2010.80235084,0.00019351,2]
[373499312,1753023048973,-168.0,0.00019381,2]
[373499313,1753023048982,-472.07520401,0.00019413,2]
[373499314,1753023048992,-700.0,0.0001942,2]
[373499315,1753023049001,-7356.13753329,0.00019434,2]
[373499316,1753023049010,-168.0,0.00019435,2]
[373499317,1753023049019,-1596.5,0.00019452,2]
[373499318,1753023049029,-154.49,0.00019452,2]
[373499319,1753023049040,-2392.5,0.00019452,2]
[373499320,1753023049049,-1046.66,0.00019452,2]
[373499321,1753023049059,-460.0,0.00019452,2]
[373499322,1753023049069,-460.0,0.00019452,2]
[373499323,1753023049079,-641.43,0.00019452,2]
[373499324,1753023049088,-460.0,0.00019452,2]
[373499325,1753023049097,-465.64,0.00019452,2]
[373499326,1753023049107,-234.89928852,0.00019452,2]
[373499327,1753023049116,-493.01,0.00019452,2]
[373499328,1753023049126,-460.0,0.00019452,2]
[373499329,1753023049136,-462.87,0.00019452,2]
[373499330,1753023049146,-460.0,0.00019452,2]
[373499331,1753023049155,-460.0,0.00019452,2]
[373499332,1753023049165,-460.0,0.00019452,2]
[373499333,1753023049174,-2017.06,0.00019452,2]
[373499334,1753023049183,-993.92,0.00019452,2]
[373499335,1753023049193,-471.17,0.00019452,2]
[373499336,1753023049202,-460.0,0.00019452,2]
[373499337,1753023049212,-339.82,0.00019452,2]
[373499338,1753023049221,-460.0,0.00019452,2]
[373499339,1753023049231,-1985.29,0.00019452,2]
[373499340,1753023049240,-460.0,0.00019452,2]
[373499341,1753023049250,-464.4,0.00019452,2]
[373499342,1753023049260,-1227.97,0.00019452,2]
[373499343,1753023049270,-1900.71,0.00019452,2]
[373499344,1753023049280,-490.06568455,0.00019452,2]
[373499345,1753023049290,-460.0,0.00019452,2]
[373499346,1753023049299,-532.58,0.00019452,2]
[373499347,1753023049309,-471.67,0.00019452,2]
[373499348,1753023049319,-460.0,0.00019452,2]
[373499349,1753023049329,-602.73,0.00019452,2]
[373499350,1753023049339,-1681.56,0.00019452,2]
[373499351,1753023049353,-1600.4,0.00019452,2]
[373499352,1753023049362,-498.85,0.00019452,2]
[373499353,1753023049372,-570.05,0.00019452,2]
[373499354,1753023049382,-1384.24,0.00019452,2]
[373499355,1753023049391,-1489.64,0.00019452,2]
[373499356,1753023049400,-549.58,0.00019452,2]
[373499357,1753023049410,-152.29115071,0.00019452,2]
[373499358,1753023049419,-538.47,0.00019452,2]
[373499359,1753023049430,-2511.51,0.00019452,2]
[373499360,1753023049440,-2286.56,0.00019452,2]
[373499361,1753023049449,-469.89,0.00019452,2]
[373499362,1753023049459,-460.0,0.00019452,2]
[373499363,1753023049468,-460.0,0.00019452,2]
[373499364,1753023049478,-4253.21383711,0.0001959,2]
[373499365,1753023049487,-7356.13753329,0.00019591,2]
[373499366,1753023049497,-460.0,0.0001963,2]
[373499367,1753023049507,-587.0,0.00019631,2]
[373499368,1753023049516,-1596.5,0.00019726,2]
[373499369,1753023049525,-2392.5,0.00019726,2]
[373499370,1753023049535,-1046.66,0.00019726,2]
[373499371,1753023049545,-302.50278373,0.00019726,2]
[373499372,1753023049555,-460.0,0.00019726,2]
[373499373,1753023049564,-641.43,0.00019726,2]
[373499374,1753023049573,-460.0,0.00019726,2]
[373499375,1753023049582,-465.64,0.00019726,2]
[373499376,1753023049591,-493.01,0.00019726,2]
[373499377,1753023049600,-460.0,0.00019726,2]
[373499378,1753023049609,-460.0,0.00019726,2]
[373499379,1753023049618,-460.0,0.00019726,2]
[373499380,1753023049628,-460.0,0.00019726,2]
[373499381,1753023049637,-2017.06,0.00019726,2]
[373499382,1753023049646,-993.92,0.00019726,2]
[373499383,1753023049655,-471.17,0.00019726,2]
[373499384,1753023049665,-460.0,0.00019726,2]
[373499385,1753023049674,-460.0,0.00019726,2]